fUSD/lending_fUSD_20240409
["ID","MTS","AMOUNT","RATE_DAILY","PERIOD"]
[322017327,1712689842376,-858.69,0.00019452,2]
[322017328,1712689842385,-634.91,0.00019452,2]
[322017329,1712689842395,-500.0,0.00019452,2]
[322017330,1712689842404,-500.0,0.00019452,2]
[322017331,1712689842413,-500.0,0.00019452,2]
[322017332,1712689842422,-500.0,0.00019452,2]
[322017333,1712689842432,-174.045692,0.00019452,2]
[322017334,1712689842441,-150.0,0.0001947,2]
[322017335,1712689842450,-150.0,0.00019476,2]
[322017336,1712689842459,-150.0,0.00019599,2]
[322017337,1712689842468,-150.0,0.00019647,2]
[322017339,1712689842478,-150.0,0.00019671,2]
[322017341,1712689842487,-339.58435605,0.0001968,2]
[322017342,1712689842497,-304.46832005,0.00019725,2]
[322017343,1712689842507,-366.4967877,0.00019725,2]
[322017344,1712689842515,-426.51000969,0.00019726,2]
[322017345,1712689842525,-500.0,0.00019726,2]
[322017346,1712689842534,-500.0,0.00019726,2]
[322017347,1712689842543,-500.0,0.00019726,2]
[322017348,1712689842552,-500.0,0.00019726,2]
[322017349,1712689842561,-500.0,0.00019726,2]
[322017350,1712689842570,-500.0,0.00019726,2]
[322017351,1712689842579,-500.0,0.00019726,2]
[322017352,1712689842589,-500.0,0.00019726,2]
[322017353,1712689842598,-500.0,0.00019726,2]
[322017354,1712689842607,-500.0,0.00019726,2]
[322017355,1712689842616,-500.0,0.00019726,2]
[322017356,1712689842626,-180.89984039,0.00019726,2]
[322017357,1712689842638,-537.65184119,0.00019726,2]
[322017358,1712689842647,-500.0,0.00019726,2]
[322017359,1712689842656,-500.0,0.00019726,2]
[322017360,1712689842666,-500.0,0.00019726,2]
[322017361,1712689842676,-500.0,0.00019726,2]
[322017362,1712689842685,-391.85348808,0.00019726,2]
[322017363,1712689842694,-150.55713568,0.00019726,2]
[322017364,1712689842704,-500.0,0.00019726,2]
[322017365,1712689842713,-500.0,0.00019726,2]
[322017366,1712689842722,-500.0,0.00019726,2]
[322017367,1712689842731,-500.0,0.00019726,2]
[322017368,1712689842740,-500.0,0.00019726,2]
[322017369,1712689842750,-500.0,0.00019726,2]
[322017370,1712689842759,-500.0,0.00019726,2]
[322017371,1712689842768,-500.0,0.00019726,2]
[322017372,1712689842777,-500.0,0.00019726,2]
[322017373,1712689842786,-500.0,0.00019726,2]
[322017374,1712689842796,-500.0,0.00019726,2]
[322017375,1712689842805,-500.0,0.00019726,2]
[322017376,1712689842814,-500.0,0.00019726,2]
[322017377,1712689842823,-500.0,0.00019726,2]
[322017378,1712689842833,-500.0,0.00019726,2]
[322017379,1712689842842,-500.0,0.00019726,2]
[322017380,1712689842852,-529.62233116,0.00019726,2]
[322017381,1712689842862,-500.0,0.00019726,2]
[322017382,1712689842871,-500.0,0.00019726,2]
[322017383,1712689842880,-500.0,0.00019726,2]
[322017384,1712689842890,-541.7,0.00019726,2]
[322017385,1712689842900,-500.0,0.00019726,2]
[322017386,1712689842909,-1568.73,0.00019726,2]
[322017387,1712689842919,-500.0,0.00019726,2]
[322017388,1712689842928,-500.0,0.00019726,2]
[322017389,1712689842937,-556.51,0.00019726,2]
[322017390,1712689842946,-500.0,0.00019726,2]
[322017391,1712689842955,-500.0,0.00019726,2]
[322017392,1712689842964,-726.75,0.00019726,2]
[322017393,1712689842973,-500.0,0.00019726,2]
[322017394,1712689842983,-834.61,0.00019726,2]
[322017395,1712689842992,-579.84,0.00019726,2]
[322017396,1712689843001,-5931.33,0.00019726,2]
[322017397,1712689843010,-500.0,0.00019726,2]
[322017398,1712689843020,-500.0,0.00019726,2]
[322017399,1712689843030,-500.0,0.00019726,2]
[322017400,1712689843038,-645.19,0.00019726,2]
[322017401,1712689843048,-500.0,0.00019726,2]
[322017402,1712689843057,-2631.18,0.00019726,2]
[322017403,1712689843066,-500.0,0.00019726,2]
[322017404,1712689843075,-500.0,0.00019726,2]
[322017405,1712689843085,-500.0,0.00019726,2]
[322017406,1712689843094,-500.0,0.00019726,2]
[322017407,1712689843104,-500.0,0.00019726,2]
[322017408,1712689843113,-1536.22,0.00019726,2]
[322017409,1712689843122,-500.0,0.00019726,2]
[322017410,1712689843132,-500.0,0.00019726,2]
[322017411,1712689843142,-4167.86,0.00019726,2]
[322017412,1712689843152,-924.52,0.00019726,2]
[322017413,1712689843162,-500.0,0.00019726,2]
[322017414,1712689843171,-500.0,0.00019726,2]
[322017415,1712689843180,-962.64,0.00019726,2]
[322017416,1712689843189,-500.0,0.00019726,2]
[322017417,1712689843198,-500.0,0.00019726,2]
[322017418,1712689843206,-988.75,0.00019726,2]
[322017419,1712689843216,-500.0,0.00019726,2]
[322017420,1712689843225,-500.0,0.00019726,2]
[322017421,1712689843234,-500.0,0.00019726,2]
[322017422,1712689843243,-500.0,0.00019726,2]
[322017423,1712689843251,-500.0,0.00019726,2]
[322017424,1712689843261,-500.0,0.00019726,2]
[322017425,1712689843272,-1416.38,0.00019726,2]
[322017426,1712689843281,-680.7,0.00019726,2]
[322017427,1712689843290,-1213.14,0.00019726,2]
[322017428,1712689843299,-500.0,0.00019726,2]
[322017429,1712689843309,-500.0,0.00019726,2]
[322017430,1712689843318,-500.0,0.00019726,2]
[322017431,1712689843327,-500.0,0.00019726,2]
[322017432,1712689843336,-500.0,0.00019726,2]
[322017433,1712689843346,-1021.99,0.00019726,2]
[322017434,1712689843357,-688.68,0.00019726,2]
[322017435,1712689843366,-500.0,0.00019726,2]
[322017436,1712689843375,-500.0,0.00019726,2]
[322017437,1712689843385,-3446.09,0.00019726,2]
[322017438,1712689843396,-500.0,0.00019726,2]
[322017439,1712689843404,-5584.22,0.00019726,2]
[322017440,1712689843413,-500.0,0.00019726,2]
[322017441,1712689843422,-500.0,0.00019726,2]
[322017442,1712689843431,-500.0,0.00019726,2]
[322017443,1712689843440,-500.0,0.00019726,2]
[322017444,1712689843449,-500.0,0.00019726,2]
[322017445,1712689843457,-558.6,0.00019726,2]
[322017446,1712689843466,-516.33,0.00019726,2]
[322017447,1712689843475,-500.0,0.00019726,2]
[322017448,1712689843484,-1788.24,0.00019726,2]
[322017449,1712689843492,-500.0,0.00019726,2]
[322017450,1712689843501,-500.0,0.00019726,2]
[322017451,1712689843510,-500.0,0.00019726,2]
[322017452,1712689843519,-500.0,0.00019726,2]
[322017453,1712689843528,-500.0,0.00019726,2]
[322017454,1712689843536,-1714.1,0.00019726,2]
[322017455,1712689843545,-500.0,0.00019726,2]
[322017456,1712689843554,-500.0,0.00019726,2]
[322017457,1712689843563,-500.0,0.00019726,2]
[322017458,1712689843572,-957.64,0.00019726,2]
[322017459,1712689843581,-500.0,0.00019726,2]
[322017460,1712689843590,-500.0,0.00019726,2]
[322017461,1712689843599,-500.0,0.00019726,2]
[322017462,1712689843607,-500.0,0.00019726,2]
[322017463,1712689843616,-953.64,0.00019726,2]
[322017464,1712689843625,-549.91,0.00019726,2]
[322017465,1712689843634,-568.78,0.00019726,2]
[322017466,1712689843644,-550.06,0.00019726,2]
[322017467,1712689843653,-500.0,0.00019726,2]
[322017468,1712689843662,-823.39,0.00019726,2]
[322017469,1712689843670,-500.0,0.00019726,2]
[322017470,1712689843679,-500.0,0.00019726,2]
[322017471,1712689843688,-571.44,0.00019726,2]
[322017472,1712689843697,-500.0,0.00019726,2]
[322017473,1712689843706,-500.0,0.00019726,2]
[322017474,1712689843714,-606.64,0.00019726,2]
[322017475,1712689843723,-500.0,0.00019726,2]
[322017476,1712689843732,-500.0,0.00019726,2]
[322017477,1712689843741,-500.0,0.00019726,2]
[322017478,1712689843750,-579.63,0.00019726,2]
[322017479,1712689843758,-500.0,0.00019726,2]
[322017480,1712689843767,-500.0,0.00019726,2]
[322017481,1712689843776,-500.0,0.00019726,2]
[322017482,1712689843784,-500.0,0.00019726,2]
[322017483,1712689843793,-500.0,0.00019726,2]
[322017484,1712689843802,-954.79,0.00019726,2]
[322017485,1712689843811,-864.96,0.00019726,2]
[322017486,1712689843820,-613.74,0.00019726,2]
[322017487,1712689843829,-730.86,0.00019726,2]
[322017488,1712689843838,-500.0,0.00019726,2]
[322017489,1712689843847,-1481.41,0.00019726,2]
[322017490,1712689843856,-500.0,0.00019726,2]
[322017491,1712689843865,-537.32,0.00019726,2]
[322017492,1712689843874,-926.66,0.00019726,2]
[322017493,1712689843883,-500.0,0.00019726,2]
[322017494,1712689843893,-500.0,0.00019726,2]
[322017495,1712689843902,-237.41999182,0.00019726,2]
[322017496,1712689843911,-367.47596915,0.00019726,2]
[322017497,1712689843921,-591.09,0.00019726,2]
[322017498,1712689843930,-500.0,0.00019726,2]
[322017499,1712689843939,-1351.58,0.00019726,2]
[322017500,1712689843948,-500.0,0.00019726,2]
[322017501,1712689843957,-500.0,0.00019726,2]
[322017502,1712689843967,-500.0,0.00019726,2]
[322017503,1712689843977,-500.0,0.00019726,2]
[322017504,1712689843986,-500.0,0.00019726,2]
[322017505,1712689843995,-500.0,0.00019726,2]
[322017506,1712689844005,-1534.66,0.00019726,2]
[322017507,1712689844014,-858.69,0.00019726,2]
[322017508,1712689844023,-634.91,0.00019726,2]
[322017509,1712689844033,-500.0,0.00019726,2]
[322017510,1712689844042,-500.0,0.00019726,2]
[322017511,1712689844051,-500.0,0.00019726,2]
[322017512,1712689844061,-509.0,0.00019744,2]
[322017513,1712689844070,-567.15,0.00019758,2]
[322017514,1712689844079,-150.0,0.00019821,2]
[322017515,1712689844089,-417.82,0.00019863,2]
[322017516,1712689844098,-158.61,0.00019863,2]
[322017517,1712689844107,-150.0,0.00019863,2]
[322017518,1712689844117,-770.81,0.00019863,2]
[322017519,1712689844126,-156.11,0.00019863,2]
[322017520,1712689844135,-162.23,0.00019863,2]
[322017521,1712689844145,-348.62,0.00019863,2]
[322017522,1712689844154,-150.0,0.00019863,2]
[322017523,1712689844164,-155.97634313,0.000199,2]
[322017524,1712689844173,-155.97634313,0.000199,2]
[322017525,1712689844182,-155.97634313,0.000199,2]
[322017526,1712689844191,-155.97634313,0.000199,2]
[322017527,1712689844200,-155.97634313,0.000199,2]
[322017528,1712689844209,-155.97634313,0.000199,2]
[322017529,1712689844218,-155.97634313,0.000199,2]
[322017530,1712689844227,-150.0,0.00019916,2]
[322017531,1712689844236,-1117.82006959,0.0001992,2]
[322017532,1712689844246,-339.58435605,0.00019924,2]
[322017533,1712689844255,-150.0,0.00019943,2]
[322017534,1712689844264,-5000.0,0.0002,2]
[322017535,1712689844277,-20168.76501266,0.0002,2]
[322017536,1712689844286,-500.0,0.0002,2]
[322017537,1712689844295,-500.0,0.0002,2]
[322017538,1712689844304,-500.0,0.0002,2]
[322017539,1712689844315,-500.0,0.0002,2]
[322017540,1712689844324,-500.0,0.0002,2]
[322017541,1712689844333,-358.51336987,0.0002,2]
[322017542,1712689844341,-633.5469642,0.0002,2]
[322017543,1712689844354,-500.0,0.0002,2]
[322017544,1712689844364,-500.0,0.0002,2]
[322017545,1712689844373,-514.03075697,0.0002,2]
[322017546,1712689844383,-500.0,0.0002,2]
[322017547,1712689844392,-500.0,0.0002,2]
[322017548,1712689844401,-500.0,0.0002,2]
[322017549,1712689844411,-500.0,0.0002,2]
[322017550,1712689844420,-500.0,0.0002,2]
[322017551,1712689844430,-500.0,0.0002,2]
[322017552,1712689844439,-500.0,0.0002,2]
[322017553,1712689844449,-377.59208688,0.0002,2]
[322017554,1712689844458,-500.0,0.0002,2]
[322017555,1712689844468,-500.0,0.0002,2]
[322017556,1712689844477,-500.0,0.0002,2]
[322017557,1712689844486,-500.0,0.0002,2]
[322017558,1712689844495,-15694.0,0.0002,2]
[322017559,1712689844505,-500.0,0.0002,2]
[322017560,1712689844691,-500.0,0.0002,2]
[322017561,1712689844700,-500.0,0.0002,2]
[322017562,1712689844710,-500.0,0.0002,2]
[322017563,1712689844720,-310.38322165,0.0002,2]
[322017564,1712689844729,-500.0,0.0002,2]
[322017565,1712689844739,-500.0,0.0002,2]
[322017566,1712689844749,-500.0,0.0002,2]
[322017567,1712689844759,-500.0,0.0002,2]
[322017568,1712689844769,-500.0,0.0002,2]
[322017569,1712689844782,-500.0,0.0002,2]
[322017570,1712689844793,-500.0,0.0002,2]
[322017571,1712689844804,-541.7,0.0002,2]
[322017572,1712689844815,-500.0,0.0002,2]
[322017573,1712689844825,-1568.73,0.0002,2]
[322017574,1712689844835,-500.0,0.0002,2]
[322017575,1712689844846,-500.0,0.0002,2]
[322017576,1712689844859,-556.51,0.0002,2]
[322017577,1712689844872,-500.0,0.0002,2]
[322017578,1712689844882,-500.0,0.0002,2]
[322017579,1712689844893,-726.75,0.0002,2]
[322017580,1712689844903,-500.0,0.0002,2]
[322017581,1712689844912,-834.61,0.0002,2]
[322017582,1712689844921,-579.84,0.0002,2]
[322017583,1712689844930,-5931.33,0.0002,2]
[322017584,1712689844939,-500.0,0.0002,2]
[322017585,1712689844948,-500.0,0.0002,2]
[322017586,1712689844958,-500.0,0.0002,2]
[322017587,1712689844967,-645.19,0.0002,2]
[322017588,1712689844976,-2631.18,0.0002,2]
[322017589,1712689844985,-500.0,0.0002,2]
[322017590,1712689844994,-176.50664198,0.0002,2]
[322017591,1712689845003,-500.0,0.0002,2]
[322017592,1712689845012,-500.0,0.0002,2]
[322017593,1712689845021,-293.37478773,0.0002,2]
[322017594,1712689845030,-500.0,0.0002,2]
[322017595,1712689845039,-1536.22,0.0002,2]
[322017596,1712689845048,-500.0,0.0002,2]
[322017597,1712689845057,-500.0,0.0002,2]
[322017598,1712689845066,-4167.86,0.0002,2]
[322017599,1712689845075,-924.52,0.0002,2]
[322017600,1712689845085,-500.0,0.0002,2]
[322017601,1712689845094,-500.0,0.0002,2]
[322017602,1712689845103,-962.64,0.0002,2]
[322017603,1712689845112,-500.0,0.0002,2]
[322017604,1712689845121,-500.0,0.0002,2]
[322017605,1712689845131,-988.75,0.0002,2]
[322017606,1712689845140,-500.0,0.0002,2]
[322017607,1712689845149,-500.0,0.0002,2]
[322017608,1712689845159,-500.0,0.0002,2]
[322017609,1712689845168,-500.0,0.0002,2]
[322017610,1712689845177,-500.0,0.0002,2]
[322017611,1712689845186,-500.0,0.0002,2]
[322017612,1712689845196,-1416.38,0.0002,2]
[322017613,1712689845204,-680.7,0.0002,2]
[322017614,1712689845213,-1213.14,0.0002,2]
[322017615,1712689845222,-500.0,0.0002,2]
[322017616,1712689845231,-500.0,0.0002,2]
[322017617,1712689845241,-500.0,0.0002,2]
[322017618,1712689845251,-500.0,0.0002,2]
[322017619,1712689845261,-500.0,0.0002,2]
[322017620,1712689845274,-1021.99,0.0002,2]
[322017621,1712689845284,-688.68,0.0002,2]
[322017622,1712689845293,-500.0,0.0002,2]
[322017624,1712689845303,-500.0,0.0002,2]
[322017626,1712689845312,-3446.09,0.0002,2]
[322017628,1712689845321,-500.0,0.0002,2]
[322017630,1712689845331,-5584.22,0.0002,2]
[322017632,1712689845341,-500.0,0.0002,2]
[322017634,1712689845351,-500.0,0.0002,2]
[322017635,1712689845361,-500.0,0.0002,2]
[322017636,1712689845371,-500.0,0.0002,2]
[322017637,1712689845380,-500.0,0.0002,2]
[322017638,1712689845390,-558.6,0.0002,2]
[322017639,1712689845400,-516.33,0.0002,2]
[322017640,1712689845409,-500.0,0.0002,2]
[322017642,1712689845418,-1788.24,0.0002,2]
[322017644,1712689845427,-500.0,0.0002,2]
[322017646,1712689845437,-500.0,0.0002,2]
[322017648,1712689845446,-500.0,0.0002,2]
[322017650,1712689845455,-500.0,0.0002,2]
[322017652,1712689845465,-500.0,0.0002,2]
[322017654,1712689845474,-1714.1,0.0002,2]
[322017656,1712689845483,-500.0,0.0002,2]
[322017658,1712689845492,-500.0,0.0002,2]
[322017660,1712689845502,-500.0,0.0002,2]
[322017662,1712689845511,-957.64,0.0002,2]
[322017664,1712689845520,-500.0,0.0002,2]
[322017666,1712689845530,-500.0,0.0002,2]
[322017667,1712689845539,-500.0,0.0002,2]
[322017668,1712689845549,-500.0,0.0002,2]
[322017669,1712689845558,-953.64,0.0002,2]
[322017671,1712689845567,-549.91,0.0002,2]
[322017673,1712689845576,-568.78,0.0002,2]
[322017675,1712689845585,-550.06,0.0002,2]
[322017676,1712689845594,-500.0,0.0002,2]
[322017679,1712689845604,-823.39,0.0002,2]
[322017681,1712689845613,-500.0,0.0002,2]
[322017682,1712689845622,-500.0,0.0002,2]
[322017683,1712689845631,-571.44,0.0002,2]
[322017684,1712689845641,-500.0,0.0002,2]
[322017685,1712689845650,-500.0,0.0002,2]
[322017686,1712689845659,-606.64,0.0002,2]
[322017687,1712689845668,-500.0,0.0002,2]
[322017688,1712689845678,-500.0,0.0002,2]
[322017689,1712689845687,-500.0,0.0002,2]
[322017690,1712689845696,-579.63,0.0002,2]
[322017691,1712689845706,-500.0,0.0002,2]
[322017692,1712689845715,-500.0,0.0002,2]
[322017693,1712689845724,-500.0,0.0002,2]
[322017694,1712689845733,-500.0,0.0002,2]
[322017695,1712689845743,-500.0,0.0002,2]
[322017696,1712689845752,-954.79,0.0002,2]
[322017697,1712689845761,-864.96,0.0002,2]
[322017698,1712689845771,-613.74,0.0002,2]
[322017699,1712689845780,-730.86,0.0002,2]
[322017700,1712689845789,-500.0,0.0002,2]
[322017701,1712689845799,-177.79307,0.0002,2]
[322017702,1712689845808,-1481.41,0.0002,2]
[322017703,1712689845816,-500.0,0.0002,2]
[322017704,1712689845826,-537.32,0.0002,2]
[322017705,1712689845836,-926.66,0.0002,2]
[322017706,1712689845845,-500.0,0.0002,2]
[322017707,1712689845855,-500.0,0.0002,2]
[322017708,1712689845864,-591.09,0.0002,2]
[322017709,1712689845873,-500.0,0.0002,2]
[322017710,1712689845883,-1351.58,0.0002,2]
[322017711,1712689845892,-500.0,0.0002,2]
[322017712,1712689845901,-500.0,0.0002,2]
[322017713,1712689845911,-500.0,0.0002,2]
[322017714,1712689845920,-500.0,0.0002,2]
[322017715,1712689845929,-500.0,0.0002,2]
[322017716,1712689845939,-500.0,0.0002,2]
[322017717,1712689845948,-1534.66,0.0002,2]
[322017718,1712689845957,-858.69,0.0002,2]
[322017719,1712689845967,-634.91,0.0002,2]
[322017720,1712689845976,-500.0,0.0002,2]
[322017721,1712689845985,-500.0,0.0002,2]
[322017722,1712689845994,-500.0,0.0002,2]
[322017723,1712689846004,-168.75036011,0.00020057,2]
[322017725,1712689846013,-150.0,0.0002008,2]
[322017727,1712689846022,-150.0,0.0002008,2]
[322017728,1712689846031,-155.97634313,0.00020095,2]
[322017729,1712689846041,-431.22,0.00020136,2]
[322017730,1712689846050,-150.0,0.00020163,2]
[322017731,1712689846060,-339.58435605,0.00020168,2]
[322017732,1712689846069,-1000.0,0.00020173,2]
[322017733,1712689846078,-500.0,0.00020273,2]
[322017734,1712689846087,-500.0,0.00020273,2]
[322017735,1712689846096,-500.0,0.00020273,2]
[322017736,1712689846106,-500.0,0.00020273,2]
[322017737,1712689846115,-500.0,0.00020273,2]
[322017738,1712689846125,-500.0,0.00020273,2]
[322017739,1712689846135,-500.0,0.00020273,2]
[322017740,1712689846145,-500.0,0.00020273,2]
[322017741,1712689846154,-500.0,0.00020273,2]
[322017742,1712689846163,-500.0,0.00020273,2]
[322017743,1712689846173,-500.0,0.00020273,2]
[322017744,1712689846182,-500.0,0.00020273,2]
[322017745,1712689846191,-500.0,0.00020273,2]
[322017746,1712689846201,-500.0,0.00020273,2]
[322017747,1712689846211,-500.0,0.00020273,2]
[322017748,1712689846220,-500.0,0.00020273,2]
[322017749,1712689846229,-500.0,0.00020273,2]
[322017750,1712689846238,-500.0,0.00020273,2]
[322017751,1712689846247,-500.0,0.00020273,2]
[322017752,1712689846257,-500.0,0.00020273,2]
[322017753,1712689846271,-500.0,0.00020273,2]
[322017754,1712689846280,-500.0,0.00020273,2]
[322017755,1712689846289,-500.0,0.00020273,2]
[322017756,1712689846300,-500.0,0.00020273,2]
[322017757,1712689846309,-500.0,0.00020273,2]
[322017758,1712689846319,-500.0,0.00020273,2]
[322017759,1712689846328,-500.0,0.00020273,2]
[322017760,1712689846337,-500.0,0.00020273,2]
[322017761,1712689846348,-500.0,0.00020273,2]
[322017762,1712689846358,-541.7,0.00020273,2]
[322017763,1712689846367,-346.49067757,0.00020273,2]
[322017764,1712689846377,-1568.73,0.00020273,2]
[322017765,1712689846386,-500.0,0.00020273,2]
[322017766,1712689846395,-591.94630616,0.00020273,2]
[322017767,1712689846405,-556.51,0.00020273,2]
[322017768,1712689846414,-500.0,0.00020273,2]
[322017769,1712689846423,-500.0,0.00020273,2]
[322017770,1712689846432,-726.75,0.00020273,2]
[322017771,1712689846442,-500.0,0.00020273,2]
[322017772,1712689846451,-834.61,0.00020273,2]
[322017773,1712689846461,-579.84,0.00020273,2]
[322017774,1712689846470,-5931.33,0.00020273,2]
[322017775,1712689846479,-500.0,0.00020273,2]
[322017776,1712689846488,-500.0,0.00020273,2]
[322017777,1712689846497,-500.0,0.00020273,2]
[322017778,1712689846506,-645.19,0.00020273,2]
[322017779,1712689846516,-2631.18,0.00020273,2]
[322017780,1712689846525,-500.0,0.00020273,2]
[322017781,1712689846534,-500.0,0.00020273,2]
[322017782,1712689846543,-500.0,0.00020273,2]
[322017783,1712689846552,-500.0,0.00020273,2]
[322017784,1712689846562,-1536.22,0.00020273,2]
[322017785,1712689846571,-500.0,0.00020273,2]
[322017786,1712689846580,-500.0,0.00020273,2]
[322017787,1712689846590,-4167.86,0.00020273,2]
[322017788,1712689846599,-924.52,0.00020273,2]
[322017789,1712689846608,-500.0,0.00020273,2]
[322017790,1712689846617,-500.0,0.00020273,2]
[322017791,1712689846627,-962.64,0.00020273,2]
[322017792,1712689846637,-262.61772495,0.00020273,2]
[322017793,1712689846648,-500.0,0.00020273,2]
[322017794,1712689846657,-988.75,0.00020273,2]
[322017795,1712689846666,-500.0,0.00020273,2]
[322017796,1712689846676,-500.0,0.00020273,2]
[322017797,1712689846685,-500.0,0.00020273,2]
[322017798,1712689846694,-500.0,0.00020273,2]
[322017799,1712689846704,-500.0,0.00020273,2]
[322017800,1712689846713,-500.0,0.00020273,2]
[322017801,1712689846723,-1416.38,0.00020273,2]
[322017802,1712689846732,-680.7,0.00020273,2]
[322017803,1712689846742,-1213.14,0.00020273,2]
[322017804,1712689846751,-630.42269156,0.00020273,2]
[322017805,1712689846760,-500.0,0.00020273,2]
[322017806,1712689846769,-500.0,0.00020273,2]
[322017807,1712689846778,-500.0,0.00020273,2]
[322017808,1712689846788,-500.0,0.00020273,2]
[322017809,1712689846797,-1021.99,0.00020273,2]
[322017810,1712689846806,-688.68,0.00020273,2]
[322017811,1712689846815,-500.0,0.00020273,2]
[322017812,1712689846825,-500.0,0.00020273,2]
[322017813,1712689846835,-3446.09,0.00020273,2]
[322017814,1712689846844,-500.0,0.00020273,2]
[322017815,1712689846853,-5584.22,0.00020273,2]
[322017816,1712689846862,-500.0,0.00020273,2]
[322017817,1712689846871,-500.0,0.00020273,2]
[322017818,1712689846881,-500.0,0.00020273,2]
[322017819,1712689846890,-500.0,0.00020273,2]
[322017820,1712689846902,-376.10742091,0.00020273,2]
[322017821,1712689846912,-558.6,0.00020273,2]
[322017822,1712689846921,-516.33,0.00020273,2]
[322017823,1712689846930,-500.0,0.00020273,2]
[322017824,1712689846939,-1788.24,0.00020273,2]
[322017825,1712689846948,-500.0,0.00020273,2]
[322017826,1712689846958,-500.0,0.00020273,2]
[322017827,1712689846968,-500.0,0.00020273,2]
[322017828,1712689847025,-500.0,0.00020273,2]
[322017829,1712689847034,-500.0,0.00020273,2]
[322017830,1712689847043,-1714.1,0.00020273,2]
[322017831,1712689847052,-500.0,0.00020273,2]
[322017832,1712689847062,-500.0,0.00020273,2]
[322017833,1712689847072,-500.0,0.00020273,2]
[322017834,1712689847083,-957.64,0.00020273,2]
[322017835,1712689847093,-500.0,0.00020273,2]
[322017836,1712689847104,-500.0,0.00020273,2]
[322017837,1712689847114,-500.0,0.00020273,2]
[322017838,1712689847124,-500.0,0.00020273,2]
[322017839,1712689847134,-953.64,0.00020273,2]
[322017840,1712689847146,-549.91,0.00020273,2]
[322017841,1712689847155,-568.78,0.00020273,2]
[322017842,1712689847164,-550.06,0.00020273,2]
[322017843,1712689847175,-500.0,0.00020273,2]
[322017844,1712689847184,-823.39,0.00020273,2]
[322017845,1712689847195,-500.0,0.00020273,2]
[322017846,1712689847205,-500.0,0.00020273,2]
[322017847,1712689847214,-571.44,0.00020273,2]
[322017848,1712689847224,-500.0,0.00020273,2]
[322017849,1712689847233,-500.0,0.00020273,2]
[322017850,1712689847242,-606.64,0.00020273,2]
[322017851,1712689847251,-500.0,0.00020273,2]
[322017852,1712689847262,-500.0,0.00020273,2]
[322017853,1712689847275,-500.0,0.00020273,2]
[322017854,1712689847285,-579.63,0.00020273,2]
[322017855,1712689847296,-500.0,0.00020273,2]